{"text_format":"1","workbook":"xlsx","n_sheets":5,"sheets":["Sheet1","Sheet2","Sheet3","Sheet4","Sheet5"],"not_rendered":{"charts":0,"images":0,"macros":1,"external_links":0,"defined_names":0,"comments":0,"pivot_tables":0},"unopened":[],"bounds":{"document_bytes":16777216,"sheet_cells":100000,"rows_first":2000,"rows_last":500,"rows_between":2000,"halvings":0,"cell_chars":16384,"cell_head_chars":4096},"cells_cut":0,"cells_raw":0,"read":"whole","date_system":"1900"}

{"sheet":"Sheet1","index":0,"n_rows":13,"n_cols":2,"rows_kept":13,"cut":false,"hidden":false,"merged":[]}
["Name","Project Name"]
["Alpha",{"$f":"\"Project: \" & A2","v":"Project: Alpha"}]
["Beta",{"$f":"\"Project: \" & A3","v":"Project: Beta"}]
["Gamma","Project: Gamma"]
["Delta","Project: Delta"]
["Epsilon","Project: Epsilon"]
["Zeta","Project: Zeta"]
["Eta","Project: Eta"]
["Theta","Project: Theta"]
["Iota","Project: Iota"]
["Kappa","Project: Kappa"]
["Lambda","Project: Lambda"]
["Mu","Project: Mu"]

{"sheet":"Sheet2","index":1,"n_rows":13,"n_cols":2,"rows_kept":13,"cut":false,"hidden":false,"merged":[]}
["Name","Project Name"]
["Alpha",{"$f":"A2 & \" - US\"","v":"Alpha - US"}]
["Beta",{"$f":"A3 & \" - US\"","v":"Beta - US"}]
["Gamma","Gamma - US"]
["Delta","Delta - US"]
["Epsilon","Epsilon - US"]
["Zeta","Zeta - US"]
["Eta","Eta - US"]
["Theta","Theta - US"]
["Iota","Iota - US"]
["Kappa","Kappa - US"]
["Lambda","Lambda - US"]
["Mu","Mu - US"]

{"sheet":"Sheet3","index":2,"n_rows":13,"n_cols":2,"rows_kept":13,"cut":false,"hidden":false,"merged":[]}
["Name","HQ"]
["Alpha - US",{"$f":"LEFT(A2, SEARCH(\"-\", A2)) & \"(HQ)\" & RIGHT(A2, LEN(A2) - SEARCH(\"-\", A2))","v":"Alpha -(HQ) US"}]
["Beta - US",{"$f":"A3 & \" - US\"","v":"Beta - US - US"}]
["Gamma - US","Gamma - US - US"]
["Delta - US","Delta - US - US"]
["Epsilon - US","Epsilon - US - US"]
["Zeta - US","Zeta - US - US"]
["Eta - US","Eta - US - US"]
["Theta - US","Theta - US - US"]
["Iota - US","Iota - US - US"]
["Kappa - US","Kappa - US - US"]
["Lambda - US","Lambda - US - US"]
["Mu - US","Mu - US - US"]

{"sheet":"Sheet4","index":3,"n_rows":11,"n_cols":2,"rows_kept":11,"cut":false,"hidden":false,"merged":[]}
["Name","Add Prefix"]
["Johnson","Dr. Johnson"]
["Reid","Dr. Reid"]
["Anderson","Dr. Anderson"]
["Bennett","Dr. Bennett"]
["Carter","Dr. Carter"]
["Davis","Dr. Davis"]
["Ellis","Dr. Ellis"]
["Foster","Dr. Foster"]
["Graham","Dr. Graham"]
["Harris","Dr. Harris"]

{"sheet":"Sheet5","index":4,"n_rows":11,"n_cols":2,"rows_kept":11,"cut":false,"hidden":false,"merged":[]}
["Name","Add Prefix"]
["Johnson","Dr.Johnson"]
["Reid","Dr.Reid"]
["Anderson","Dr.Anderson"]
["Bennett","Dr.Bennett"]
["Carter","Dr.Carter"]
["Davis","Dr.Davis"]
["Ellis","Dr.Ellis"]
["Foster","Dr.Foster"]
["Graham","Dr.Graham"]
["Harris","Dr.Harris"]